bitfinex-derivatives/quotes_ETHF0:USTF0_20260303
["timestamp","ask_amount","ask_price","bid_price","bid_amount"]
[1772553449154,0.5972363,1966.7,1965.7,0.58017113]
[1772553450246,6.666,1966.6,1965.7,0.58570285]
[1772553450756,0.5972363,1966.5,1965.7,0.58570285]
[1772553451050,0.5972363,1966.5,1965.7,0.00553172]
[1772553451452,0.5972363,1966.2,1964.7,0.58017113]
[1772553451654,0.5972363,1966.0,1964.7,0.58017113]
[1772553452354,0.5972363,1966.0,1964.7,0.58560952]
[1772553452556,0.5972363,1965.6,1964.7,0.58560952]
[1772553452856,0.5972363,1965.6,1964.7,0.00543839]
[1772553453654,0.5972363,1965.4,1964.2,0.58017113]
[1772553453854,0.5972363,1965.2,1964.2,0.58017113]
[1772553454353,0.5972363,1965.2,1963.7,0.58017113]
[1772553454354,0.5972363,1965.0,1963.7,0.58017113]
[1772553454754,0.6028307,1965.0,1963.7,0.58602399]
[1772553455261,0.6028307,1965.0,1964.1,0.58017113]
[1772553455553,0.0055944,1965.0,1964.3,0.58017113]
[1772553455951,7.2642363,1965.7,1964.5,0.58017113]
[1772553456561,0.5972363,1965.6,1964.5,0.58017113]
[1772553456949,0.60153443,1965.6,1964.5,0.58017113]
[1772553457360,0.5972363,1965.4,1964.2,0.58017113]
[1772553457561,0.5972363,1965.2,1964.2,0.58017113]
[1772553457855,0.5972363,1965.0,1964.2,0.58017113]
[1772553458061,6.668,1964.9,1964.2,0.58017113]
[1772553458255,7.2652363,1964.9,1964.2,0.58017113]
[1772553458452,0.5972363,1964.7,1963.8,0.58017113]
[1772553458761,0.5972363,1964.9,1964.0,0.58017113]
[1772553459656,6.668,1965.0,1964.0,0.58017113]
[1772553459859,0.5972363,1965.1,1964.0,0.58017113]
[1772553460059,6.668,1965.0,1964.0,0.58017113]
[1772553460257,6.668,1965.2,1964.2,0.58017113]
[1772553460556,0.5972363,1965.4,1964.5,0.25456]
[1772553460756,0.00429813,1965.6,1964.9,0.2545]
[1772553460962,0.5972363,1966.1,1965.2,0.58017113]
[1772553461456,6.669,1966.4,1965.6,0.58017113]
[1772553461656,6.669,1966.6,1965.8,0.58017113]
[1772553461857,0.00633247,1966.6,1965.8,0.58398566]
[1772553462259,0.60356877,1966.6,1965.8,0.00381453]
[1772553464362,6.668,1966.5,1965.8,0.58398566]
[1772553464557,7.2652363,1966.5,1965.8,0.58398566]
[1772553464762,0.5972363,1966.4,1965.8,0.00381453]
[1772553465162,0.5972363,1966.4,1965.8,0.58398566]
[1772553465964,0.00633247,1966.6,1965.8,0.58398566]
[1772553466265,0.00633247,1966.6,1966.0,0.58017113]
[1772553466861,0.00633247,1966.6,1965.8,0.00381453]
[1772553466862,0.5972363,1967.1,1966.2,0.58017113]
[1772553467563,0.5972363,1967.1,1966.1,0.58017113]
[1772553467764,0.60195564,1967.1,1966.1,0.58017113]
[1772553467966,0.00471934,1967.1,1966.5,0.59432129]
[1772553469267,0.60546848,1967.1,1966.5,0.59432129]
[1772553469663,0.00471934,1967.1,1966.5,0.59432129]
[1772553470764,0.60546848,1967.1,1966.5,0.59432129]
[1772553470969,0.60546848,1967.1,1966.0,0.59432129]
[1772553472065,0.60074914,1966.9,1966.0,0.59432129]
[1772553472470,7.26674914,1966.8,1966.0,0.59432129]
[1772553472666,0.00471934,1967.1,1966.0,0.59432129]
[1772553472965,7.26674914,1967.0,1966.0,0.59432129]
[1772553473272,0.60074914,1966.9,1965.8,0.59813582]
[1772553474164,0.60074914,1966.7,1965.8,0.59813582]
[1772553474367,6.666,1966.6,1965.8,0.59813582]
[1772553474770,7.26674914,1966.6,1965.8,0.59813582]
[1772553474967,0.60074914,1966.5,1965.8,0.00381453]
[1772553476168,0.25893934,1967.1,1965.8,0.00381453]
[1772553476169,7.26674914,1966.4,1965.8,0.00381453]
[1772553476372,7.26574914,1966.3,1965.8,0.00381453]
[1772553476773,7.26574914,1966.3,1965.8,0.59813582]
[1772553477273,7.26574914,1966.3,1965.8,0.00381453]
[1772553477470,0.60074914,1966.2,1965.8,0.00381453]
[1772553477667,0.25893934,1967.1,1965.8,0.00381453]
[1772553477668,0.60074914,1967.0,1965.8,0.59813582]
[1772553477972,0.60074914,1966.8,1965.8,0.59813582]
[1772553478168,0.60074914,1966.8,1965.0,0.59432129]
[1772553478169,0.60074914,1966.2,1965.0,0.59432129]
[1772553478375,0.60074914,1966.0,1965.0,0.59432129]
[1772553478673,0.60074914,1966.0,1964.7,0.59432129]
[1772553479373,0.60074914,1965.8,1964.7,0.59840034]
[1772553479573,0.60074914,1965.6,1964.7,0.59840034]
[1772553479773,0.60461925,1965.6,1964.7,0.59840034]
[1772553480369,0.00387011,1965.6,1964.9,0.59432129]
[1772553480670,0.60074914,1966.0,1965.1,0.59432129]
[1772553480972,0.60074914,1966.1,1965.1,0.59432129]
[1772553481167,0.60074914,1966.1,1965.3,0.59432129]
[1772553481375,0.60074914,1966.6,1965.5,0.59432129]
[1772553481769,0.60710205,1966.6,1965.7,0.59432129]
[1772553482173,0.60710205,1966.6,1965.6,0.59432129]
[1772553482474,0.60074914,1966.4,1965.2,0.59432129]
[1772553483470,0.60074914,1966.4,1964.7,0.00407905]
[1772553483471,0.60074914,1966.4,1965.4,0.59432129]
[1772553483673,0.60074914,1966.3,1965.4,0.59432129]
[1772553484674,0.60074914,1966.1,1965.4,0.59432129]
[1772553485071,0.60074914,1966.5,1965.8,0.59432129]
[1772553485378,0.00635291,1966.6,1966.0,0.59432129]
[1772553485574,0.60710205,1966.6,1966.0,0.59432129]
[1772553485778,0.60710205,1966.6,1965.7,0.59432129]
[1772553486071,10.47476159,1967.6,1966.1,0.59432129]
[1772553486072,0.60074914,1967.5,1966.1,0.59432129]
[1772553486272,0.60074914,1967.1,1966.1,0.59432129]
[1772553487079,0.60494401,1967.1,1966.3,0.59432129]
[1772553487275,7.27094401,1967.1,1966.3,0.59432129]
[1772553487679,0.60074914,1967.0,1966.3,0.59432129]
[1772553488582,0.60074914,1967.0,1966.2,0.25434]
[1772553488583,0.60074914,1966.9,1966.2,0.25434]
[1772553488977,0.60074914,1966.8,1966.2,0.25434]
[1772553489476,0.60074914,1966.8,1966.2,0.84866129]
[1772553490176,0.60074914,1966.8,1966.2,0.59432129]
[1772553490378,0.60074914,1966.8,1966.1,0.00444196]
[1772553490979,7.26994401,1967.1,1966.2,0.59432129]
[1772553491180,0.60074914,1967.0,1966.2,0.59432129]
[1772553492480,0.60074914,1966.8,1965.8,0.59432129]
[1772553493182,0.60494401,1967.1,1966.0,0.59432129]
[1772553493373,0.00419487,1967.1,1966.3,0.25432]
[1772553493578,0.60494401,1967.1,1966.4,0.59432129]
[1772553493884,0.60494401,1967.1,1966.6,0.59432129]
[1772553493885,0.00419487,1967.1,1966.6,0.59432129]
[1772553494281,0.60494401,1967.1,1966.3,0.00358693]
[1772553494581,0.60074914,1968.0,1967.2,0.59432129]
[1772553494774,4.22242159,1968.4,1966.7,6.25519]
[1772553494775,0.60074914,1968.4,1967.4,0.59432129]
[1772553495584,0.60628353,1968.4,1967.4,0.59432129]
[1772553496083,7.26574914,1968.3,1967.4,0.59432129]
[1772553496284,0.60074914,1968.2,1967.4,0.59432129]
[1772553496689,0.60074914,1968.2,1966.9,0.59432129]
[1772553497285,0.60074914,1968.0,1966.9,0.59432129]
[1772553498086,0.59614477,1967.9,1966.9,0.59432129]
[1772553498288,7.26014477,1967.9,1966.9,0.59432129]
[1772553498484,0.59614477,1967.8,1966.3,6.92190693]
[1772553498677,0.59614477,1967.8,1966.8,0.58379011]
[1772553498882,6.664,1967.7,1966.8,0.58379011]
[1772553499083,7.24671102,1967.7,1966.8,0.58379011]
[1772553499484,0.58271102,1967.7,1966.8,0.58379011]
[1772553499685,0.58271102,1968.3,1967.2,0.5621228]
[1772553500588,7.24571102,1968.2,1967.2,0.5621228]
[1772553500789,0.58271102,1968.1,1967.2,0.5621228]
[1772553501990,7.24571102,1968.1,1967.2,0.5621228]
[1772553502188,0.58271102,1968.0,1967.1,0.25422]
[1772553502385,0.58271102,1968.0,1967.2,0.5621228]
[1772553502787,0.00553439,1968.4,1967.4,0.5621228]
[1772553502788,7.24571102,1968.3,1967.4,0.5621228]
[1772553503186,0.00553439,1968.4,1967.6,0.5621228]
[1772553503391,0.58824541,1968.4,1967.3,0.5621228]
[1772553503988,0.58271102,1968.3,1967.3,0.5621228]
[1772553504187,0.58271102,1968.1,1967.3,0.5621228]
[1772553504588,0.58271102,1968.3,1967.5,0.5621228]
[1772553506288,0.58271102,1968.3,1967.6,0.25415]
[1772553506489,0.58271102,1968.3,1967.7,0.5621228]
[1772553506695,0.58271102,1968.3,1967.7,0.56605255]
[1772553507393,0.58271102,1968.3,1967.7,0.00392975]
[1772553507788,0.58271102,1968.3,1967.3,0.5621228]
[1772553508791,0.58271102,1968.3,1967.3,0.56848481]
[1772553508993,7.24371102,1968.2,1967.3,0.56848481]
[1772553509491,0.58271102,1968.1,1967.3,0.56848481]
[1772553510188,0.58824541,1968.4,1967.5,0.5621228]
[1772553510388,0.00553439,1968.4,1967.7,0.5621228]
[1772553511798,0.00553439,1968.4,1967.9,0.5621228]
[1772553512092,0.58824541,1968.4,1967.9,0.5621228]
[1772553512298,0.58824541,1968.4,1967.5,0.5621228]
[1772553512692,0.58824541,1968.4,1967.7,0.5621228]
[1772553514091,0.58271102,1968.2,1967.3,0.00636201]
[1772553514292,2.39013622,1968.3,1966.6,7.73810284]
[1772553514293,0.58271102,1967.9,1966.7,0.5621228]
[1772553514495,0.58271102,1967.7,1966.7,0.5621228]
[1772553515090,2.39013622,1968.0,1967.3,0.5621228]
[1772553515091,0.58271102,1968.0,1967.3,0.5621228]
[1772553515296,0.58271102,1968.0,1967.3,0.56673911]
[1772553516694,0.00553439,1968.4,1967.5,0.5621228]
[1772553516890,0.58824541,1968.4,1967.5,0.5621228]
[1772553517092,0.00553439,1968.4,1967.5,0.5621228]
[1772553517293,4.47639159,1969.1,1967.9,0.5621228]
[1772553517294,0.58271102,1969.0,1967.9,0.5621228]
[1772553517496,0.58271102,1969.0,1968.1,0.5621228]
[1772553518302,0.58633132,1969.0,1968.1,0.5621228]
[1772553518997,0.58271102,1968.9,1968.1,0.5621228]
[1772553519200,0.58271102,1968.9,1967.6,0.5621228]
[1772553519402,0.58271102,1968.9,1967.8,0.5621228]
[1772553519599,0.0036203,1969.0,1968.0,0.5621228]
[1772553519800,0.58633132,1969.0,1968.0,0.5621228]
[1772553520200,0.58271102,1968.9,1967.7,0.5621228]
[1772553521004,0.58271102,1968.8,1967.7,0.5621228]
[1772553521305,0.58271102,1968.6,1967.5,0.5621228]
[1772553521506,0.58271102,1968.4,1967.5,0.5621228]
[1772553521804,7.24633132,1969.0,1967.8,0.5621228]
[1772553523099,7.24633132,1969.0,1968.0,0.5621228]
[1772553523303,0.0036203,1969.0,1968.2,0.5621228]
[1772553523504,0.58271102,1969.7,1969.0,0.5621228]
[1772553524401,0.58271102,1969.3,1968.5,0.5621228]
[1772553524597,0.58923145,1969.3,1968.5,0.00495097]
[1772553524802,0.58271102,1969.0,1967.7,0.5621228]
[1772553525102,2.39013622,1969.1,1967.7,0.5621228]
[1772553525103,0.58271102,1968.8,1967.7,0.5621228]
[1772553525503,0.58271102,1968.6,1967.7,0.5621228]
[1772553525808,0.58271102,1968.6,1967.7,0.56732304]
[1772553525999,0.58271102,1968.6,1967.7,0.00520024]
[1772553526705,0.58271102,1968.6,1967.7,0.56732304]
[1772553527205,7.24171102,1968.5,1967.7,0.56732304]
[1772553527404,0.58271102,1968.4,1967.7,0.56732304]
[1772553528601,0.58415003,1969.2,1967.9,0.58522514]
[1772553528805,0.00652043,1969.3,1968.2,7.08972514]
[1772553528999,0.00652043,1969.3,1968.7,0.58522514]
[1772553529201,7.24315003,1969.7,1968.9,0.58522514]
[1772553529398,7.24315003,1969.7,1968.8,0.254]
[1772553529399,0.58415003,1970.1,1969.1,0.58522514]
[1772553530310,0.58816325,1970.1,1969.1,0.59114477]
[1772553531113,0.58816325,1970.1,1969.1,0.00591963]
[1772553531605,0.58415003,1969.9,1968.6,0.58522514]
[1772553531803,0.58415003,1969.7,1968.6,0.58522514]
[1772553532009,0.58415003,1969.7,1968.8,0.58522514]
[1772553532210,0.58415003,1969.7,1968.3,0.58522514]
[1772553532710,0.58415003,1969.7,1968.3,0.58941496]
[1772553532912,0.58415003,1969.3,1968.3,0.00418982]
[1772553533117,6.658,1969.2,1968.3,0.58941496]
[1772553533318,0.58415003,1969.3,1968.3,0.58941496]
[1772553533518,7.24215003,1969.3,1968.3,0.58941496]
[1772553534214,0.58415003,1969.2,1968.3,0.58941496]
[1772553535011,6.657,1969.3,1968.5,0.58522514]
[1772553535212,0.58415003,1969.8,1968.7,0.58522514]
[1772553535414,0.58415003,1969.7,1968.7,0.58522514]
[1772553537415,0.58415003,1969.7,1968.9,0.58522514]
[1772553537722,6.657,1969.9,1968.9,0.58522514]
[1772553537916,7.24115003,1969.9,1968.9,0.58522514]
[1772553538213,0.58415003,1969.8,1968.9,0.58522514]
[1772553538725,0.58415003,1969.8,1968.4,0.58522514]
[1772553539316,0.58415003,1969.8,1968.6,0.58522514]
[1772553539614,0.58415003,1969.6,1968.6,0.58522514]
[1772553539918,0.58415003,1969.4,1968.6,0.58522514]
[1772553540320,0.58415003,1969.4,1968.3,0.58941496]
[1772553540523,0.58415003,1969.4,1968.3,0.00418982]
[1772553540721,0.58415003,1969.2,1968.3,0.00418982]
[1772553542415,0.58415003,1969.2,1968.3,0.58941496]
[1772553542616,7.24015003,1969.4,1968.5,0.58522514]
[1772553542915,0.58415003,1969.3,1968.3,0.58941496]
[1772553543122,0.58415003,1969.1,1968.3,0.00418982]
[1772553543320,6.656,1969.0,1968.3,0.58941496]
[1772553544023,7.24015003,1969.0,1968.3,0.58941496]
[1772553544421,0.58415003,1969.0,1968.3,0.58941496]
[1772553544620,0.58415003,1969.6,1968.3,0.58941496]
[1772553544826,0.58415003,1969.4,1968.3,0.00418982]
[1772553545222,0.58415003,1969.4,1968.3,0.58941496]
[1772553545422,0.58415003,1969.4,1968.3,0.84347496]
[1772553545721,0.58415003,1969.3,1968.6,0.58522514]
[1772553546421,0.58415003,1969.5,1968.6,0.58522514]
[1772553546618,6.657,1969.4,1968.6,0.58522514]
[1772553546822,7.24115003,1969.4,1968.6,0.58522514]
[1772553547326,0.58415003,1969.3,1968.6,0.58522514]
[1772553548027,6.657,1969.4,1968.6,0.58522514]
[1772553548728,0.58415003,1970.0,1969.0,0.58522514]
[1772553550024,0.58415003,1970.0,1969.2,0.58522514]
[1772553550432,0.00401322,1970.1,1969.4,0.58522514]
[1772553551028,0.58816325,1970.1,1969.4,0.58522514]
[1772553551626,0.00401322,1970.1,1969.4,0.58522514]
[1772553552228,0.00401322,1970.1,1969.6,0.58522514]
[1772553552434,0.58415003,1970.4,1969.6,0.58522514]
[1772553552728,0.58415003,1970.4,1969.4,0.58522514]
[1772553553133,0.58415003,1970.4,1969.1,0.58522514]
[1772553553331,0.58931151,1970.4,1969.1,0.58522514]
[1772553553727,7.24531151,1970.4,1969.3,0.58522514]
[1772553554629,0.00516148,1970.4,1969.7,0.58522514]
[1772553554835,0.58415003,1970.7,1969.9,0.58522514]
[1772553555837,0.58872316,1970.7,1969.9,0.59178366]
[1772553556233,0.00457313,1970.7,1969.9,0.59178366]
[1772553558939,0.55858749,1971.2,1970.3,0.59122769]
[1772553559732,0.56426735,1971.7,1970.7,0.58938222]
[1772553559939,0.56973921,1971.7,1970.7,0.58938222]
[1772553560337,0.56973921,1971.7,1970.5,0.58938222]
[1772553560639,0.56426735,1971.5,1970.3,0.58938222]
[1772553560834,0.56426735,1971.3,1970.3,0.58938222]
[1772553561636,0.56426735,1971.3,1970.1,0.25383]
[1772553561637,0.56426735,1971.3,1970.0,0.58938222]
[1772553562130,0.56426735,1970.9,1969.9,0.00655852]
[1772553562439,0.56426735,1970.7,1969.9,0.00655852]
[1772553562636,0.56426735,1970.7,1969.1,6.90696]
[1772553562637,0.56426735,1970.5,1969.4,0.58938222]
[1772553562838,0.56426735,1970.3,1969.2,0.58938222]
[1772553563042,0.56426735,1970.1,1968.7,0.58938222]
[1772553563236,0.25385,1970.0,1968.7,0.58938222]
[1772553563541,0.56426735,1969.7,1968.7,0.00619507]
[1772553563743,0.56426735,1969.5,1968.7,0.00619507]
[1772553564040,0.56426735,1969.5,1968.3,0.58938222]
[1772553564341,7.21726735,1969.4,1968.3,0.58938222]
[1772553564838,7.21726735,1969.4,1968.3,0.59386006]
[1772553565135,6.653,1969.6,1968.5,0.58938222]
[1772553565331,0.00578793,1970.0,1968.9,0.58938222]
[1772553565539,7.22305528,1970.0,1968.9,0.58938222]
[1772553566137,0.56426735,1969.9,1968.9,0.58938222]
[1772553566640,0.56426735,1969.9,1968.4,0.58938222]
[1772553567035,0.56426735,1969.9,1968.5,0.25404]
[1772553567239,0.00578793,1970.0,1968.8,0.58938222]
[1772553567436,0.57005528,1970.0,1969.0,0.58938222]
[1772553567638,0.00578793,1970.0,1969.2,0.58938222]
[1772553567943,0.00578793,1970.0,1969.4,0.58938222]
[1772553568436,6.653,1970.5,1969.6,0.58938222]
[1772553568745,6.653,1970.6,1969.6,0.58938222]
[1772553569137,7.21726735,1970.6,1969.6,0.58938222]
[1772553569339,0.56426735,1970.5,1969.6,0.58938222]
[1772553570239,0.00363132,1970.6,1969.6,0.58938222]
[1772553570438,0.56789867,1970.6,1969.6,0.58938222]
[1772553572942,0.56789867,1970.6,1969.1,0.58938222]
[1772553573544,0.56426735,1970.4,1969.1,0.58938222]
[1772553573844,0.56426735,1970.2,1968.5,6.90704]
[1772553574046,0.56426735,1970.0,1968.6,0.58938222]
[1772553574247,0.56426735,1969.8,1968.6,0.58938222]
[1772553574742,0.56426735,1969.7,1968.8,0.58938222]
[1772553575147,0.56426735,1969.7,1968.4,0.58938222]
[1772553575643,0.56426735,1969.5,1968.6,0.58938222]
[1772553576044,6.653,1969.8,1968.8,0.58938222]
[1772553576347,6.653,1969.8,1969.0,0.58938222]
[1772553576643,6.653,1969.8,1969.2,0.58938222]
[1772553577551,0.56426735,1970.3,1969.2,0.58938222]
[1772553577746,6.653,1970.2,1969.2,0.58938222]
[1772553578050,6.653,1970.2,1969.4,0.58938222]
[1772553578051,0.56426735,1970.2,1969.4,0.58938222]
[1772553581252,7.21726735,1970.2,1969.4,0.58938222]
[1772553581652,0.56426735,1970.5,1969.4,0.58938222]
[1772553581857,0.56426735,1970.5,1969.6,0.58938222]
[1772553584856,0.00363132,1970.6,1969.8,0.58938222]
[1772553585056,0.00363132,1970.6,1969.8,0.59412458]
[1772553586955,0.56789867,1970.6,1969.8,0.59412458]
[1772553587256,0.56789867,1970.6,1969.8,0.00474236]
[1772553587456,0.56789867,1970.6,1969.8,0.59412458]
[1772553587952,0.56789867,1970.6,1969.4,0.56994858]
[1772553588856,0.55587707,1970.4,1969.4,0.56994858]
[1772553589056,0.55587707,1970.4,1969.4,0.57520179]
[1772553589258,6.653,1970.3,1969.4,0.57520179]
[1772553589458,7.20887707,1970.4,1969.4,0.57520179]
[1772553590258,0.55587707,1970.3,1969.4,0.57520179]
[1772553591357,0.55587707,1970.3,1969.6,0.56994858]
[1772553592457,0.55587707,1970.3,1969.5,0.25391]
[1772553592761,0.55587707,1970.3,1969.4,0.57520179]
[1772553593858,0.55587707,1970.0,1969.1,0.56994858]
[1772553594262,0.55587707,1969.8,1968.7,0.56994858]
[1772553594461,0.55587707,1969.6,1968.7,0.56994858]
[1772553594657,0.55587707,1970.0,1968.9,0.56994858]
[1772553594863,0.55587707,1969.8,1968.9,0.56994858]
[1772553598169,0.55587707,1969.8,1968.7,0.57553886]
[1772553598372,0.55587707,1969.6,1968.7,0.00559028]
[1772553598568,0.55587707,1969.4,1968.7,0.00559028]
[1772553599270,0.55587707,1969.4,1968.7,0.57553886]
[1772553599471,6.653,1969.5,1968.7,0.57553886]
[1772553599672,7.20887707,1969.8,1968.8,0.56994858]
[1772553599872,0.55587707,1970.0,1969.0,0.56994858]
[1772553600175,2.94033156,1970.0,1968.7,0.00559028]
[1772553600375,0.55587707,1969.9,1968.7,0.00559028]
[1772553600571,0.55587707,1969.9,1968.7,0.57553886]
[1772553601675,0.55587707,1970.5,1968.7,0.57553886]
[1772553601874,0.55587707,1970.5,1968.9,0.56994858]
[1772553602075,0.55587707,1970.5,1969.2,6.24725]
[1772553602278,0.55587707,1970.5,1969.4,0.56994858]
[1772553602679,0.55587707,1970.5,1969.5,0.25391]
[1772553602978,7.21350839,1970.6,1969.6,0.56994858]
[1772553603173,0.55587707,1970.5,1969.6,0.56994858]
[1772553603379,0.55587707,1970.5,1969.1,0.56994858]
[1772553603679,0.55587707,1970.1,1968.8,0.56994858]
[1772553603878,0.55587707,1970.1,1968.7,0.00559028]
[1772553603879,0.55587707,1969.7,1968.7,0.57553886]
[1772553604577,0.00363132,1970.6,1968.7,0.00559028]
[1772553605278,0.55587707,1970.4,1968.8,0.56994858]
[1772553605883,0.55587707,1970.2,1968.8,0.56994858]
[1772553606078,0.55587707,1970.2,1968.9,0.56994858]
[1772553606478,0.55587707,1970.2,1969.3,0.56994858]
[1772553606681,7.20987707,1970.5,1969.5,0.56994858]
[1772553606878,0.55587707,1970.4,1969.3,0.56994858]
[1772553607177,0.55587707,1970.2,1969.0,0.56994858]
[1772553607381,0.55587707,1970.0,1969.0,0.56994858]
[1772553608282,0.55587707,1970.0,1969.2,0.56994858]
[1772553608684,0.55587707,1970.0,1969.4,0.56994858]
[1772553608981,0.55587707,1970.3,1969.4,0.56994858]
[1772553609783,0.55587707,1970.3,1969.6,0.56994858]
[1772553609983,0.55587707,1970.5,1969.6,0.56994858]
[1772553610779,0.55587707,1970.5,1969.7,0.56994858]
[1772553610984,0.55587707,1970.3,1969.1,0.56994858]
[1772553611186,0.55587707,1970.3,1969.2,0.56994858]
[1772553612384,0.55587707,1969.9,1968.8,0.56994858]
[1772553612583,0.55587707,1969.7,1968.8,0.56994858]
[1772553613079,0.55587707,1969.7,1967.7,6.25171]
[1772553613080,0.55587707,1969.5,1968.4,0.56994858]
[1772553613384,0.55587707,1969.1,1967.9,0.56994858]
[1772553613582,0.55587707,1969.6,1968.1,0.56994858]
[1772553613783,0.55587707,1969.2,1968.1,0.56994858]
[1772553614083,0.55587707,1969.0,1967.6,0.56994858]
[1772553615085,0.55587707,1968.8,1967.5,0.00487963]
[1772553615282,0.55587707,1968.6,1967.5,0.00487963]
[1772553615487,0.55587707,1968.4,1967.5,0.00487963]
[1772553616277,0.55587707,1968.4,1967.5,0.57482821]
[1772553616687,6.655,1968.5,1967.5,0.57482821]
[1772553616879,0.55989111,1969.2,1968.0,0.56994858]
[1772553617084,0.55989111,1969.2,1968.2,0.56994858]
[1772553617286,7.21489111,1969.2,1968.2,0.56994858]
[1772553617488,0.55587707,1969.1,1968.2,0.56994858]
[1772553617989,0.55587707,1969.1,1967.6,0.57705481]
[1772553619184,0.55496592,1968.9,1967.6,0.57705481]
[1772553619789,0.60091314,1968.7,1967.6,0.57705481]
[1772553620288,0.60091314,1968.9,1967.8,0.55897298]
[1772553620489,6.66001404,1969.2,1968.0,0.55897298]
[1772553620996,0.60091314,1969.1,1968.2,0.55897298]
[1772553621890,0.60091314,1969.1,1967.6,0.55897298]
[1772553622395,0.60091314,1968.9,1967.6,0.55897298]
[1772553622994,0.60091314,1968.7,1967.6,0.55897298]
[1772553623490,6.656,1969.0,1968.0,0.55897298]
[1772553623695,0.60091314,1969.0,1968.2,0.55897298]
[1772553624299,0.60091314,1969.0,1967.7,0.55897298]
[1772553624798,0.60091314,1968.8,1967.7,0.55897298]
[1772553625499,0.60091314,1968.6,1967.5,0.56385261]
[1772553626395,0.60091314,1968.5,1967.5,0.56385261]
[1772553626695,0.60091314,1968.3,1967.5,0.56385261]
[1772553627201,0.60091314,1968.3,1967.5,0.00487963]
[1772553628003,0.60091314,1968.2,1967.5,0.56385261]
[1772553628399,0.60091314,1968.2,1967.5,0.00487963]
[1772553628800,6.657,1968.3,1967.5,0.56385261]
[1772553629103,7.25791314,1968.3,1967.5,0.56385261]
[1772553629399,0.60091314,1968.2,1967.5,0.56385261]
[1772553629604,6.657,1968.3,1967.5,0.56385261]
[1772553630005,7.25791314,1968.3,1967.5,0.56385261]
[1772553630209,0.60091314,1968.2,1967.5,0.56385261]
[1772553630700,6.657,1968.3,1967.5,0.56385261]
[1772553631104,7.25791314,1968.3,1967.5,0.56385261]
[1772553631302,0.60091314,1968.2,1967.5,0.56385261]
[1772553631516,0.60091314,1968.2,1967.5,0.00487963]
[1772553631812,0.60091314,1968.2,1967.2,0.55897298]
[1772553632699,0.60091314,1968.2,1967.0,0.55897298]
[1772553632903,0.60091314,1968.2,1967.0,0.56276642]
[1772553633099,0.60091314,1968.8,1967.2,0.55897298]
[1772553633303,0.254,1968.9,1967.4,0.55897298]
[1772553633304,0.60091314,1968.6,1967.4,0.55897298]
[1772553634904,0.60091314,1968.6,1967.6,0.55897298]
[1772553635802,6.658,1968.7,1968.0,0.55897298]
[1772553636105,7.25891314,1968.7,1968.0,0.55897298]
[1772553636304,0.60091314,1968.6,1967.6,0.55897298]
[1772553637305,0.60091314,1968.6,1967.4,0.55897298]
[1772553637508,0.60091314,1968.4,1967.4,0.55897298]
[1772553637706,0.60091314,1968.2,1967.5,0.55897298]
[1772553638307,0.60091314,1968.2,1967.3,0.55897298]
[1772553638704,0.60091314,1968.2,1967.1,0.55897298]
[1772553639408,0.60091314,1968.2,1967.3,0.55897298]
[1772553639604,6.659,1968.1,1967.3,0.55897298]
[1772553639806,7.25991314,1968.4,1967.7,0.55897298]
[1772553640010,0.60091314,1968.6,1967.7,0.55897298]
[1772553640309,0.60091314,1968.6,1967.3,6.25328]
[1772553640310,7.25991314,1968.8,1967.9,0.55897298]
[1772553641515,0.60091314,1968.7,1967.9,0.55897298]
[1772553641706,0.60091314,1968.9,1967.9,0.55897298]
[1772553641911,6.659,1968.8,1967.9,0.55897298]
[1772553642114,7.25991314,1968.8,1967.9,0.55897298]
[1772553642506,0.60091314,1968.7,1967.9,0.55897298]
[1772553642708,0.60492718,1969.2,1968.1,0.55897298]
[1772553642911,0.60492718,1969.2,1968.3,0.55897298]
[1772553643409,0.60492718,1969.2,1968.0,0.55897298]
[1772553643814,7.26392718,1969.2,1968.4,0.55897298]
[1772553644114,0.60091314,1969.1,1968.4,0.56528993]
[1772553644311,0.60091314,1969.1,1968.4,0.00631695]
[1772553644515,0.60091314,1969.0,1968.0,0.55897298]
[1772553645416,0.60091314,1969.0,1968.0,0.56515845]
[1772553645717,0.60091314,1968.8,1968.0,0.00618547]
[1772553645918,0.60091314,1968.8,1967.3,0.55897298]
[1772553645919,0.60091314,1968.4,1967.3,0.55897298]
[1772553646214,0.60091314,1968.4,1967.0,0.55897298]
[1772553646419,0.60091314,1968.2,1967.0,0.55897298]
[1772553646716,0.60091314,1968.0,1967.0,0.55897298]
[1772553646914,0.60091314,1968.0,1967.0,0.56518076]
[1772553647315,6.658,1968.0,1967.2,0.55897298]
[1772553647518,7.25891314,1968.0,1967.2,0.55897298]
[1772553648018,6.658,1968.0,1967.2,0.55897298]
[1772553648318,7.22044585,1968.5,1967.4,0.55231888]
[1772553648617,0.56144585,1968.4,1967.4,0.55231888]
[1772553648915,0.56144585,1968.4,1967.6,0.55231888]
[1772553649417,0.56144585,1968.3,1967.1,0.55231888]
[1772553649717,0.56144585,1968.1,1967.2,0.55231888]
[1772553650216,0.56144585,1968.1,1967.0,0.81274666]
[1772553650811,0.56144585,1968.1,1967.1,0.55231888]
[1772553651012,7.22044585,1968.0,1967.1,0.55231888]
[1772553651216,6.659,1967.9,1967.1,0.55231888]
[1772553652518,0.56144585,1968.0,1967.1,0.55231888]
[1772553652720,6.659,1968.0,1967.3,0.55231888]
[1772553653319,7.22044585,1968.0,1967.3,0.55231888]
[1772553653816,6.659,1968.0,1967.3,0.55231888]
[1772553654824,7.22044585,1968.0,1967.3,0.55231888]
[1772553655524,6.66,1968.4,1967.5,0.55231888]
[1772553655726,7.22144585,1968.5,1967.5,0.55231888]
[1772553656820,0.56144585,1968.4,1967.5,0.55231888]
[1772553657021,0.56144585,1968.4,1967.6,0.80646888]
[1772553657323,0.56144585,1968.4,1967.4,6.80714982]
[1772553657521,0.56144585,1968.4,1967.4,0.55231888]
[1772553658331,0.56144585,1968.2,1967.4,0.55231888]
[1772553659830,0.56144585,1968.2,1967.0,6.81484964]
[1772553660127,7.22144585,1968.3,1967.4,0.55231888]
[1772553660322,0.56144585,1968.2,1967.2,0.55231888]
[1772553660526,0.56144585,1968.0,1967.0,0.55852666]
[1772553660929,6.66,1968.3,1966.8,1.0]
[1772553660930,0.56144585,1967.8,1966.8,1.0]
[1772553661125,0.56144585,1967.6,1966.8,1.0]
[1772553661332,0.56144585,1967.4,1966.8,1.0]
[1772553661725,0.56144585,1967.4,1966.1,7.82073748]
[1772553661726,0.56144585,1967.4,1966.3,0.55231888]
[1772553661924,0.56661474,1967.4,1966.3,0.55764758]
[1772553662127,6.66516889,1967.4,1966.4,0.55231888]
[1772553662433,7.03753256,1967.4,1966.6,0.55231888]
[1772553662628,7.03753256,1967.4,1966.4,0.55231888]
[1772553662629,0.37236367,1967.3,1966.4,0.55231888]
[1772553663227,6.25519,1966.7,1965.5,5.88412395]
[1772553663527,6.66,1966.6,1965.2,0.60256257]
[1772553663731,6.66,1966.5,1965.2,0.60256257]
[1772553663935,6.17075524,1966.4,1965.2,0.60256257]
[1772553664131,6.66,1966.3,1965.2,0.60256257]